[Event "*** SCC Grand Prix: Titled Tuesday Blitz"]
[Site "Chess.com"]
[Date "2020.07.07"]
[Round "6"]
[White "Diego_FloresQ"]
[Black "econpower"]
[Result "0-1"]
[WhiteElo "2490"]
[BlackElo "2662"]
[TimeControl "180+1"]
[EndTime "11:06:39 PDT"]
[Termination "econpower won on time"]

1. e4 {[%clk 0:02:17.3]} 1... d6 {[%clk 0:02:59.6]} 2. d4 {[%clk 0:02:17.1]}
2... Nf6 {[%clk 0:03:00]} 3. Nc3 {[%clk 0:02:17.5]} 3... e5 {[%clk 0:03:00.6]}
4. dxe5 {[%clk 0:02:17.2]} 4... dxe5 {[%clk 0:03:00.8]} 5. Qxd8+ {[%clk
0:02:17.9]} 5... Kxd8 {[%clk 0:03:01.7]} 6. Nf3 {[%clk 0:02:18.5]} 6... Bd6
{[%clk 0:03:00.6]} 7. Bc4 {[%clk 0:02:17.9]} 7... Be6 {[%clk 0:03:01]} 8. Bxe6
{[%clk 0:02:17.7]} 8... fxe6 {[%clk 0:03:01.9]} 9. Nd2 {[%clk 0:02:15.8]} 9...
Ke7 {[%clk 0:03:00.9]} 10. f3 {[%clk 0:02:16]} 10... a6 {[%clk 0:03:00.9]} 11.
a4 {[%clk 0:02:12.8]} 11... Nc6 {[%clk 0:03:01.1]} 12. Ne2 {[%clk 0:02:00.6]}
12... Nb4 {[%clk 0:02:54]} 13. Kd1 {[%clk 0:01:59.8]} 13... b5 {[%clk
0:02:54.3]} 14. c3 {[%clk 0:01:56.2]} 14... Nd3 {[%clk 0:02:51.8]} 15. Kc2
{[%clk 0:01:54.6]} 15... Nf4 {[%clk 0:02:46.5]} 16. Nxf4 {[%clk 0:01:46.7]}
16... exf4 {[%clk 0:02:47.4]} 17. Nb3 {[%clk 0:01:42.9]} 17... e5 {[%clk
0:02:46.2]} 18. Bd2 {[%clk 0:01:34.7]} 18... g5 {[%clk 0:02:38.7]} 19. h3 {[%clk
0:01:33.3]} 19... h5 {[%clk 0:02:38.5]} 20. axb5 {[%clk 0:01:33.6]} 20... axb5
{[%clk 0:02:38.3]} 21. Rxa8 {[%clk 0:01:33.9]} 21... Rxa8 {[%clk 0:02:39.2]} 22.
Be1 {[%clk 0:01:33.1]} 22... c5 {[%clk 0:02:26.8]} 23. c4 {[%clk 0:01:22.6]}
23... b4 {[%clk 0:02:00.9]} 24. Bf2 {[%clk 0:01:15]} 24... Nd7 {[%clk
0:02:01.4]} 25. Rg1 {[%clk 0:01:02.1]} 25... Kf6 {[%clk 0:01:46.1]} 26. g3
{[%clk 0:00:44.3]} 26... fxg3 {[%clk 0:01:28]} 27. Rxg3 {[%clk 0:00:45.2]} 27...
Rg8 {[%clk 0:01:25.3]} 28. Be3 {[%clk 0:00:42.3]} 28... Be7 {[%clk 0:01:22.8]}
29. Nc1 {[%clk 0:00:40.2]} 29... Nf8 {[%clk 0:01:19.9]} 30. h4 {[%clk
0:00:39.9]} 30... g4 {[%clk 0:01:18.6]} 31. Bg5+ {[%clk 0:00:35.4]} 31... Kf7
{[%clk 0:01:17.8]} 32. Bxe7 {[%clk 0:00:28.4]} 32... Kxe7 {[%clk 0:01:17.8]} 33.
Nd3 {[%clk 0:00:28.6]} 33... Kd6 {[%clk 0:01:13.4]} 34. fxg4 {[%clk 0:00:27.1]}
34... Rxg4 {[%clk 0:01:13.3]} 35. Rxg4 {[%clk 0:00:26]} 35... hxg4 {[%clk
0:01:14.2]} 36. Kd2 {[%clk 0:00:24.3]} 36... Ne6 {[%clk 0:01:10.2]} 37. Ke3
{[%clk 0:00:24.8]} 37... Ng7 {[%clk 0:01:07.4]} 38. Nf2 {[%clk 0:00:16.8]} 38...
g3 {[%clk 0:01:05.8]} 39. Nh3 {[%clk 0:00:14.3]} 39... Nh5 {[%clk 0:01:03.2]}
40. Kf3 {[%clk 0:00:14.7]} 40... Ke6 {[%clk 0:00:58.7]} 41. Ng1 {[%clk
0:00:11.2]} 41... Nf4 {[%clk 0:00:37.5]} 42. Kxg3 {[%clk 0:00:03.4]} 42... Nd3
{[%clk 0:00:38]} 0-1

[Event "*** SCC Grand Prix: Titled Tuesday Blitz"]
[Site "Chess.com"]
[Date "2020.07.07"]
[Round "6"]
[White "Na_binci"]
[Black "Varshi_chess"]
[Result "0-1"]
[WhiteElo "2078"]
[BlackElo "2258"]
[TimeControl "180+1"]
[EndTime "11:06:41 PDT"]
[Termination "Varshi_chess won on time"]

1. d4 {[%clk 0:03:00.9]} 1... d5 {[%clk 0:02:59.2]} 2. c4 {[%clk 0:03:01]} 2...
e6 {[%clk 0:02:59.5]} 3. Nc3 {[%clk 0:03:00.9]} 3... Nf6 {[%clk 0:02:59.6]} 4.
cxd5 {[%clk 0:03:01.2]} 4... exd5 {[%clk 0:02:58.6]} 5. Bg5 {[%clk 0:03:00.8]}
5... Be7 {[%clk 0:02:58.7]} 6. Qc2 {[%clk 0:03:01.2]} 6... O-O {[%clk
0:02:56.9]} 7. e3 {[%clk 0:03:01.2]} 7... c6 {[%clk 0:02:56.2]} 8. Bd3 {[%clk
0:03:01.3]} 8... Nbd7 {[%clk 0:02:56.3]} 9. Nge2 {[%clk 0:03:00.7]} 9... h6
{[%clk 0:02:54.8]} 10. Bh4 {[%clk 0:02:57.6]} 10... Re8 {[%clk 0:02:54.9]} 11.
O-O {[%clk 0:02:56.6]} 11... Ne4 {[%clk 0:02:51.5]} 12. Bxe7 {[%clk 0:02:40.9]}
12... Qxe7 {[%clk 0:02:52.4]} 13. Bxe4 {[%clk 0:02:35.2]} 13... dxe4 {[%clk
0:02:53.3]} 14. Ng3 {[%clk 0:02:34.8]} 14... Nf6 {[%clk 0:02:51.8]} 15. Rab1
{[%clk 0:02:32.6]} 15... a5 {[%clk 0:02:45.5]} 16. a3 {[%clk 0:02:32]} 16... h5
{[%clk 0:02:33]} 17. h3 {[%clk 0:02:18.7]} 17... h4 {[%clk 0:02:31]} 18. Nge2
{[%clk 0:02:19.1]} 18... Nd5 {[%clk 0:02:25.6]} 19. Nxd5 {[%clk 0:01:49.2]}
19... cxd5 {[%clk 0:02:26.5]} 20. Nf4 {[%clk 0:01:49.1]} 20... Be6 {[%clk
0:01:54.3]} 21. Rbc1 {[%clk 0:01:30.3]} 21... Rec8 {[%clk 0:01:36.8]} 22. Qb3
{[%clk 0:01:27.1]} 22... Qd7 {[%clk 0:01:24]} 23. Nxe6 {[%clk 0:01:22.3]} 23...
fxe6 {[%clk 0:01:20.1]} 24. Rxc8+ {[%clk 0:00:58.7]} 24... Rxc8 {[%clk
0:01:19.1]} 25. Qb6 {[%clk 0:00:50.1]} 25... a4 {[%clk 0:01:18.9]} 26. Qb4
{[%clk 0:00:17.6]} 26... Rc4 {[%clk 0:01:16]} 27. Qa5 {[%clk 0:00:13.4]} 27...
Qc8 {[%clk 0:01:12.4]} 28. Qb6 {[%clk 0:00:12.2]} 28... Kh7 {[%clk 0:01:10.7]}
29. f3 {[%clk 0:00:10.4]} 29... Rc2 {[%clk 0:00:35.6]} 30. fxe4 {[%clk
0:00:08.1]} 30... dxe4 {[%clk 0:00:31.6]} 31. Qb5 {[%clk 0:00:06.3]} 31... Qc6
{[%clk 0:00:14.3]} 32. Qh5+ {[%clk 0:00:05.2]} 32... Kg8 {[%clk 0:00:14.4]} 33.
Qxh4 {[%clk 0:00:03.4]} 33... Qd5 {[%clk 0:00:10.7]} 34. Qe7 {[%clk 0:00:02.2]}
34... Kh7 {[%clk 0:00:09.2]} 35. Qe8 {[%clk 0:00:01.3]} 35... Qg5 {[%clk
0:00:08.2]} 0-1

[Event "*** SCC Grand Prix: Titled Tuesday Blitz"]
[Site "Chess.com"]
[Date "2020.07.07"]
[Round "6"]
[White "GoingKronos"]
[Black "chessplayer9919"]
[Result "0-1"]
[WhiteElo "2486"]
[BlackElo "2665"]
[TimeControl "180+1"]
[EndTime "11:06:42 PDT"]
[Termination "chessplayer9919 won on time"]

1. d4 {[%clk 0:03:00.9]} 1... Nf6 {[%clk 0:03:00]} 2. Nf3 {[%clk 0:03:00.1]}
2... e6 {[%clk 0:02:59.8]} 3. c4 {[%clk 0:02:59.1]} 3... b6 {[%clk 0:02:59.8]}
4. g3 {[%clk 0:02:58.3]} 4... Ba6 {[%clk 0:03:00.2]} 5. Qc2 {[%clk 0:02:56.7]}
5... Bb7 {[%clk 0:02:56.8]} 6. Bg2 {[%clk 0:02:54.3]} 6... c5 {[%clk 0:02:56.9]}
7. d5 {[%clk 0:02:53.5]} 7... exd5 {[%clk 0:02:57.8]} 8. cxd5 {[%clk 0:02:53.3]}
8... Nxd5 {[%clk 0:02:58.7]} 9. O-O {[%clk 0:02:52.2]} 9... Be7 {[%clk
0:02:58.2]} 10. Rd1 {[%clk 0:02:49]} 10... Nc6 {[%clk 0:02:54.9]} 11. a3 {[%clk
0:02:47.7]} 11... Nf6 {[%clk 0:02:54.9]} 12. Nc3 {[%clk 0:02:44.1]} 12... O-O
{[%clk 0:02:51.1]} 13. e4 {[%clk 0:02:39.5]} 13... Rc8 {[%clk 0:01:52.6]} 14. e5
{[%clk 0:02:24.3]} 14... Ne8 {[%clk 0:01:49.5]} 15. h4 {[%clk 0:02:02.7]} 15...
h6 {[%clk 0:01:45]} 16. Bf4 {[%clk 0:01:56.9]} 16... Nd4 {[%clk 0:01:25]} 17.
Nxd4 {[%clk 0:01:49]} 17... Bxg2 {[%clk 0:01:25.2]} 18. Kxg2 {[%clk 0:01:35.2]}
18... cxd4 {[%clk 0:01:24.8]} 19. Rxd4 {[%clk 0:01:34.8]} 19... Nc7 {[%clk
0:00:54.8]} 20. Rad1 {[%clk 0:01:26]} 20... Ne6 {[%clk 0:00:55]} 21. Rxd7 {[%clk
0:01:25.4]} 21... Nxf4+ {[%clk 0:00:55.3]} 22. gxf4 {[%clk 0:01:25.6]} 22... Qe8
{[%clk 0:00:55.5]} 23. h5 {[%clk 0:01:20.3]} 23... f6 {[%clk 0:00:28.7]} 24. Qg6
{[%clk 0:01:06.1]} 24... fxe5 {[%clk 0:00:28.6]} 25. fxe5 {[%clk 0:01:06]} 25...
Qxg6+ {[%clk 0:00:18]} 26. hxg6 {[%clk 0:01:04.3]} 26... Bc5 {[%clk 0:00:14.3]}
27. Ne4 {[%clk 0:01:00.5]} 27... Rc6 {[%clk 0:00:14.5]} 28. b4 {[%clk
0:00:23.5]} 28... Rxg6+ {[%clk 0:00:12.7]} 29. Kf1 {[%clk 0:00:22.1]} 29... Rg4
{[%clk 0:00:06.9]} 30. Re1 {[%clk 0:00:17.4]} 30... Rff4 {[%clk 0:00:03.6]} 31.
bxc5 {[%clk 0:00:12]} 31... Rxe4 {[%clk 0:00:04]} 32. c6 {[%clk 0:00:10.4]}
32... Rxe1+ {[%clk 0:00:02.3]} 33. Kxe1 {[%clk 0:00:10.4]} 33... Rc4 {[%clk
0:00:02]} 34. c7 {[%clk 0:00:02.1]} 34... Kh7 {[%clk 0:00:02.4]} 35. e6 {[%clk
0:00:01.9]} 35... Kg6 {[%clk 0:00:02.9]} 0-1

[Event "*** SCC Grand Prix: Titled Tuesday Blitz"]
[Site "Chess.com"]
[Date "2020.07.07"]
[Round "6"]
[White "vangulio"]
[Black "GMaka"]
[Result "1-0"]
[WhiteElo "2473"]
[BlackElo "2321"]
[TimeControl "180+1"]
[EndTime "11:06:42 PDT"]
[Termination "vangulio won by resignation"]

1. d4 {[%clk 0:03:00.2]} 1... d5 {[%clk 0:02:57.5]} 2. Nf3 {[%clk 0:02:59.3]}
2... c6 {[%clk 0:02:53.5]} 3. c4 {[%clk 0:02:59.2]} 3... Nf6 {[%clk 0:02:52]} 4.
Nc3 {[%clk 0:02:59.1]} 4... dxc4 {[%clk 0:02:46.7]} 5. a4 {[%clk 0:02:58.5]}
5... Bf5 {[%clk 0:02:42.9]} 6. e3 {[%clk 0:02:57.9]} 6... Nbd7 {[%clk
0:02:41.6]} 7. Bxc4 {[%clk 0:02:57.5]} 7... Nb6 {[%clk 0:02:41.8]} 8. Bb3 {[%clk
0:02:38.4]} 8... e6 {[%clk 0:02:37.5]} 9. a5 {[%clk 0:02:32.3]} 9... Nbd5 {[%clk
0:02:37.1]} 10. O-O {[%clk 0:02:31.3]} 10... Bb4 {[%clk 0:02:22.4]} 11. a6
{[%clk 0:02:27.4]} 11... b5 {[%clk 0:02:15.6]} 12. Ne5 {[%clk 0:02:24.2]} 12...
Rc8 {[%clk 0:01:52.4]} 13. Bd2 {[%clk 0:02:07.8]} 13... Nxc3 {[%clk 0:01:42.5]}
14. bxc3 {[%clk 0:02:06]} 14... Bd6 {[%clk 0:01:42.9]} 15. c4 {[%clk 0:01:51.9]}
15... Bxe5 {[%clk 0:01:39.3]} 16. dxe5 {[%clk 0:01:51.7]} 16... Ne4 {[%clk
0:01:39.7]} 17. Ba5 {[%clk 0:01:37.5]} 17... Qxd1 {[%clk 0:01:33.7]} 18. Rfxd1
{[%clk 0:01:31.2]} 18... Nc5 {[%clk 0:01:28.3]} 19. Ba2 {[%clk 0:01:20.9]} 19...
Nxa6 {[%clk 0:01:13.2]} 20. Rac1 {[%clk 0:00:48.5]} 20... b4 {[%clk 0:01:02.2]}
21. c5 {[%clk 0:00:47.7]} 21... Be4 {[%clk 0:00:56.3]} 22. Rd6 {[%clk
0:00:42.6]} 22... Bd5 {[%clk 0:00:50.6]} 23. Bb1 {[%clk 0:00:31.1]} 23... O-O
{[%clk 0:00:37.5]} 24. Bd3 {[%clk 0:00:29.4]} 24... Nc7 {[%clk 0:00:36]} 25.
Bxb4 {[%clk 0:00:28.2]} 25... Nb5 {[%clk 0:00:31.2]} 26. Rd7 {[%clk 0:00:27.9]}
26... a6 {[%clk 0:00:21.8]} 27. e4 {[%clk 0:00:26.8]} 27... Bb3 {[%clk
0:00:21.2]} 28. Rb1 {[%clk 0:00:24.6]} 28... Ba4 {[%clk 0:00:17.2]} 29. Ra1
{[%clk 0:00:20.3]} 29... Bb3 {[%clk 0:00:17.3]} 30. Rxa6 {[%clk 0:00:19.1]}
30... h5 {[%clk 0:00:07.9]} 31. h4 {[%clk 0:00:16.5]} 31... Rfd8 {[%clk
0:00:07.1]} 32. Rxd8+ {[%clk 0:00:11.9]} 32... Rxd8 {[%clk 0:00:08]} 33. Be2
{[%clk 0:00:12.6]} 33... Nd4 {[%clk 0:00:07.9]} 34. Bxh5 {[%clk 0:00:11.9]}
34... g6 {[%clk 0:00:08.1]} 35. Bg4 {[%clk 0:00:11.9]} 35... Bc4 {[%clk
0:00:06.9]} 36. Rb6 {[%clk 0:00:11.5]} 36... Bb5 {[%clk 0:00:07.1]} 37. Kh2
{[%clk 0:00:11]} 37... Nc2 {[%clk 0:00:07.3]} 38. Ba5 {[%clk 0:00:10.7]} 38...
Rd4 {[%clk 0:00:06.9]} 39. Bf3 {[%clk 0:00:10.3]} 39... Rd2 {[%clk 0:00:04.7]}
40. Rb8+ {[%clk 0:00:10.4]} 40... Kg7 {[%clk 0:00:04.1]} 41. Bxd2 {[%clk
0:00:10.9]} 1-0

[Event "*** SCC Grand Prix: Titled Tuesday Blitz"]
[Site "Chess.com"]
[Date "2020.07.07"]
[Round "6"]
[White "dey2580"]
[Black "JSMastropiero"]
[Result "0-1"]
[WhiteElo "2566"]
[BlackElo "2435"]
[TimeControl "180+1"]
[EndTime "11:06:43 PDT"]
[Termination "JSMastropiero won on time"]

1. d4 {[%clk 0:03:00.9]} 1... Nf6 {[%clk 0:02:55.5]} 2. Nf3 {[%clk 0:02:57.2]}
2... g6 {[%clk 0:02:52.6]} 3. g3 {[%clk 0:02:56.9]} 3... Bg7 {[%clk 0:02:52.3]}
4. Bg2 {[%clk 0:02:57.8]} 4... O-O {[%clk 0:02:51.9]} 5. O-O {[%clk 0:02:57.5]}
5... d5 {[%clk 0:02:48.1]} 6. Ne5 {[%clk 0:02:55.8]} 6... c5 {[%clk 0:02:44.3]}
7. dxc5 {[%clk 0:02:53.7]} 7... Qc7 {[%clk 0:02:30.8]} 8. Nd3 {[%clk 0:02:40.5]}
8... e5 {[%clk 0:02:28.3]} 9. Nc3 {[%clk 0:02:34.4]} 9... e4 {[%clk 0:02:25.1]}
10. Bf4 {[%clk 0:02:26]} 10... Qa5 {[%clk 0:02:17.6]} 11. b4 {[%clk 0:02:13.3]}
11... Qa3 {[%clk 0:02:11.1]} 12. Nb5 {[%clk 0:01:47.3]} 12... Qa4 {[%clk
0:02:09.1]} 13. Nc3 {[%clk 0:01:43.1]} 13... Qa3 {[%clk 0:02:05.2]} 14. Nb5
{[%clk 0:01:26.3]} 14... Qa4 {[%clk 0:02:04.8]} 15. Nc7 {[%clk 0:01:17.3]} 15...
exd3 {[%clk 0:01:58]} 16. cxd3 {[%clk 0:01:17.3]} 16... Qxb4 {[%clk 0:01:57.7]}
17. Nxa8 {[%clk 0:01:14.6]} 17... Na6 {[%clk 0:01:50.5]} 18. Bd6 {[%clk
0:01:05.2]} 18... Re8 {[%clk 0:01:45]} 19. Nc7 {[%clk 0:00:54.7]} 19... Nxc7
{[%clk 0:01:26.4]} 20. Bxc7 {[%clk 0:00:55.6]} 20... Qxc5 {[%clk 0:01:26.8]} 21.
Rc1 {[%clk 0:00:54.8]} 21... Qa3 {[%clk 0:01:23.2]} 22. Qc2 {[%clk 0:00:48.2]}
22... Bg4 {[%clk 0:01:17.5]} 23. Rfe1 {[%clk 0:00:46.1]} 23... Rc8 {[%clk
0:01:15.9]} 24. Qb3 {[%clk 0:00:43.9]} 24... Qe7 {[%clk 0:01:02.6]} 25. Qxb7
{[%clk 0:00:25.7]} 25... Ne8 {[%clk 0:00:51.5]} 26. Bxd5 {[%clk 0:00:22.2]}
26... Rxc7 {[%clk 0:00:45.3]} 27. Rxc7 {[%clk 0:00:17.6]} 27... Nxc7 {[%clk
0:00:29.8]} 28. Qb8+ {[%clk 0:00:16.9]} 28... Bf8 {[%clk 0:00:27.8]} 29. Bc4
{[%clk 0:00:16.3]} 29... Be6 {[%clk 0:00:26.2]} 30. Rc1 {[%clk 0:00:15.2]} 30...
Bxc4 {[%clk 0:00:24.6]} 31. Rxc4 {[%clk 0:00:16.1]} 31... Ne6 {[%clk 0:00:24.6]}
32. h4 {[%clk 0:00:11.6]} 32... h5 {[%clk 0:00:23.9]} 33. Kg2 {[%clk 0:00:10.3]}
33... Kh7 {[%clk 0:00:23.7]} 34. e4 {[%clk 0:00:09.8]} 34... Qa3 {[%clk
0:00:17.4]} 35. Qe8 {[%clk 0:00:08]} 35... Kg7 {[%clk 0:00:14.5]} 36. Rc8 {[%clk
0:00:04.3]} 36... Qxd3 {[%clk 0:00:13.6]} 37. Qc6 {[%clk 0:00:02.5]} 37... Nd4
{[%clk 0:00:07]} 38. Qd5 {[%clk 0:00:02.2]} 38... Qf3+ {[%clk 0:00:07]} 39. Kg1
{[%clk 0:00:02.2]} 39... Ne2+ {[%clk 0:00:06.8]} 40. Kf1 {[%clk 0:00:02.4]}
40... Nxg3+ {[%clk 0:00:07]} 0-1

[Event "*** SCC Grand Prix: Titled Tuesday Blitz"]
[Site "Chess.com"]
[Date "2020.07.07"]
[Round "6"]
[White "RaphCamora"]
[Black "mortngabriel"]
[Result "1-0"]
[WhiteElo "2457"]
[BlackElo "2320"]
[TimeControl "180+1"]
[EndTime "11:06:43 PDT"]
[Termination "RaphCamora won on time"]

1. e4 {[%clk 0:03:00.9]} 1... c5 {[%clk 0:02:58.5]} 2. Nf3 {[%clk 0:03:00]} 2...
d6 {[%clk 0:02:58.9]} 3. d4 {[%clk 0:02:59.3]} 3... cxd4 {[%clk 0:02:59.8]} 4.
Nxd4 {[%clk 0:02:59.6]} 4... Nf6 {[%clk 0:03:00.7]} 5. Nc3 {[%clk 0:02:59.8]}
5... g6 {[%clk 0:03:01.6]} 6. Be3 {[%clk 0:02:59.3]} 6... Bg7 {[%clk 0:03:02.5]}
7. f3 {[%clk 0:02:59.8]} 7... O-O {[%clk 0:03:03.2]} 8. Qd2 {[%clk 0:03:00.2]}
8... Nc6 {[%clk 0:03:04.1]} 9. Bc4 {[%clk 0:03:00.1]} 9... Bd7 {[%clk
0:03:03.9]} 10. O-O-O {[%clk 0:02:59.5]} 10... Rc8 {[%clk 0:03:04.5]} 11. Bb3
{[%clk 0:02:59.7]} 11... Nxd4 {[%clk 0:03:05.1]} 12. Bxd4 {[%clk 0:02:59.4]}
12... b5 {[%clk 0:03:05.7]} 13. h4 {[%clk 0:02:56.5]} 13... a5 {[%clk
0:03:05.7]} 14. a3 {[%clk 0:02:55.3]} 14... b4 {[%clk 0:03:05.8]} 15. axb4
{[%clk 0:02:55.5]} 15... axb4 {[%clk 0:03:06.7]} 16. Nd5 {[%clk 0:02:55.9]}
16... Nxd5 {[%clk 0:03:07.1]} 17. Bxg7 {[%clk 0:02:56]} 17... Kxg7 {[%clk
0:03:07.9]} 18. exd5 {[%clk 0:02:56.3]} 18... Qa5 {[%clk 0:02:46]} 19. Qd4+
{[%clk 0:02:55.1]} 19... Kg8 {[%clk 0:02:45.8]} 20. h5 {[%clk 0:02:53.8]} 20...
Bf5 {[%clk 0:02:45.7]} 21. hxg6 {[%clk 0:02:49.3]} 21... Bxg6 {[%clk 0:02:33.3]}
22. Kd2 {[%clk 0:02:45.9]} 22... e5 {[%clk 0:01:45.7]} 23. dxe6 {[%clk
0:02:27.9]} 23... Qg5+ {[%clk 0:01:36.6]} 24. Ke1 {[%clk 0:02:27.6]} 24... Rfe8
{[%clk 0:01:20]} 25. Kf2 {[%clk 0:02:08]} 25... Rxe6 {[%clk 0:01:05.2]} 26. Rd2
{[%clk 0:01:21.8]} 26... Re5 {[%clk 0:00:48]} 27. f4 {[%clk 0:00:47.3]} 27...
Rf5 {[%clk 0:00:43.1]} 28. g3 {[%clk 0:00:44.6]} 28... Qe7 {[%clk 0:00:27.3]}
29. Re1 {[%clk 0:00:42.3]} 29... Qb7 {[%clk 0:00:20.8]} 30. Qxd6 {[%clk
0:00:31.8]} 30... Rh5 {[%clk 0:00:20.5]} 31. Bd5 {[%clk 0:00:05.5]} 31... Rh2+
{[%clk 0:00:19.7]} 32. Kg1 {[%clk 0:00:04.4]} 32... Rxd2 {[%clk 0:00:08.4]} 33.
Bxb7 {[%clk 0:00:04.5]} 33... Rxd6 {[%clk 0:00:05.3]} 34. Bxc8 {[%clk
0:00:04.8]} 34... Rc6 {[%clk 0:00:04.7]} 35. Bd7 {[%clk 0:00:02.5]} 35... Rxc2
{[%clk 0:00:04.6]} 36. b3 {[%clk 0:00:02.6]} 36... Rc3 {[%clk 0:00:03.2]} 37. g4
{[%clk 0:00:03]} 1-0

[Event "*** SCC Grand Prix: Titled Tuesday Blitz"]
[Site "Chess.com"]
[Date "2020.07.07"]
[Round "6"]
[White "mfwagnerpeixoto"]
[Black "juniortay"]
[Result "0-1"]
[WhiteElo "2211"]
[BlackElo "2365"]
[TimeControl "180+1"]
[EndTime "11:06:43 PDT"]
[Termination "juniortay won by resignation"]

1. e4 {[%clk 0:03:00.9]} 1... e5 {[%clk 0:02:59.9]} 2. Nf3 {[%clk 0:02:59.8]}
2... Nf6 {[%clk 0:03:00.4]} 3. Nc3 {[%clk 0:02:58.9]} 3... Nc6 {[%clk
0:03:00.1]} 4. g3 {[%clk 0:02:58.5]} 4... Nxe4 {[%clk 0:02:59.7]} 5. Nxe4 {[%clk
0:02:57.7]} 5... d5 {[%clk 0:03:00]} 6. Nc3 {[%clk 0:02:54.6]} 6... d4 {[%clk
0:02:57]} 7. Bg2 {[%clk 0:02:53.8]} 7... dxc3 {[%clk 0:02:56.3]} 8. bxc3 {[%clk
0:02:54.7]} 8... Bd6 {[%clk 0:02:56.4]} 9. O-O {[%clk 0:02:53.7]} 9... O-O
{[%clk 0:02:56.2]} 10. d3 {[%clk 0:02:54.1]} 10... Bg4 {[%clk 0:02:55.3]} 11.
Rb1 {[%clk 0:02:53.3]} 11... Rb8 {[%clk 0:02:54.5]} 12. h3 {[%clk 0:02:47.8]}
12... Bh5 {[%clk 0:02:53.7]} 13. Qe1 {[%clk 0:02:39.3]} 13... f5 {[%clk
0:02:51.3]} 14. Nd2 {[%clk 0:02:32.4]} 14... Qf6 {[%clk 0:02:44.3]} 15. Nc4
{[%clk 0:02:28.7]} 15... Kh8 {[%clk 0:02:39.2]} 16. Ne3 {[%clk 0:02:04.9]} 16...
f4 {[%clk 0:02:16.8]} 17. Nd5 {[%clk 0:02:03.1]} 17... Qg6 {[%clk 0:02:15.9]}
18. Be4 {[%clk 0:01:58.9]} 18... Qf7 {[%clk 0:02:10.3]} 19. g4 {[%clk
0:01:48.2]} 19... Bg6 {[%clk 0:01:47.3]} 20. f3 {[%clk 0:01:46.7]} 20... Nd8
{[%clk 0:01:39.8]} 21. c4 {[%clk 0:01:38.8]} 21... c6 {[%clk 0:01:31.4]} 22. Nc3
{[%clk 0:01:36.4]} 22... Bc5+ {[%clk 0:01:30.9]} 23. Kg2 {[%clk 0:01:36]} 23...
Ne6 {[%clk 0:01:30.7]} 24. h4 {[%clk 0:01:24]} 24... Nd4 {[%clk 0:01:24.7]} 25.
Bxg6 {[%clk 0:00:56.3]} 25... Qxg6 {[%clk 0:01:22.8]} 26. Qxe5 {[%clk
0:00:53.1]} 26... b6 {[%clk 0:01:15.4]} 27. Qe4 {[%clk 0:00:42.3]} 27... Nxc2
{[%clk 0:01:09.5]} 28. Qxg6 {[%clk 0:00:36]} 28... hxg6 {[%clk 0:01:08.7]} 29.
Ne4 {[%clk 0:00:36.7]} 29... Bd4 {[%clk 0:01:01.8]} 30. Bd2 {[%clk 0:00:31.4]}
30... b5 {[%clk 0:00:58.5]} 31. c5 {[%clk 0:00:21]} 31... b4 {[%clk 0:00:55.2]}
32. Rh1 {[%clk 0:00:19.8]} 32... Kg8 {[%clk 0:00:50.1]} 33. h5 {[%clk
0:00:19.6]} 33... Kf7 {[%clk 0:00:38.5]} 34. Nd6+ {[%clk 0:00:15.8]} 34... Ke6
{[%clk 0:00:37.7]} 35. hxg6 {[%clk 0:00:13.6]} 35... Ne3+ {[%clk 0:00:36.2]} 36.
Bxe3 {[%clk 0:00:13.1]} 36... fxe3 {[%clk 0:00:33.9]} 37. Nf5 {[%clk 0:00:12.3]}
37... Bxc5 {[%clk 0:00:27.2]} 38. Rhe1 {[%clk 0:00:10.9]} 38... Kd5 {[%clk
0:00:23.7]} 39. Nxe3+ {[%clk 0:00:10.2]} 39... Bxe3 {[%clk 0:00:23]} 40. Rxe3
{[%clk 0:00:11.1]} 40... Rf6 {[%clk 0:00:22.5]} 41. Re4 {[%clk 0:00:10.4]} 41...
a5 {[%clk 0:00:21.9]} 42. Rc1 {[%clk 0:00:08.9]} 42... c5 {[%clk 0:00:20.3]} 43.
Rf4 {[%clk 0:00:07]} 43... Rxf4 {[%clk 0:00:18.8]} 0-1